bitfinex-derivatives/quotes_SOLF0:USTF0_20241212
["timestamp","ask_amount","ask_price","bid_price","bid_amount"]
[1734004472904,2.1789,229.41,229.39,8.27363879]
[1734004474108,2.06,229.42,229.39,8.27363879]
[1734004474403,2.179,229.4,229.39,8.27363879]
[1734004475004,4.2389,229.42,229.39,8.27363879]
[1734004475207,2.06,229.42,229.39,8.27363879]
[1734004476207,2.179,229.41,229.39,8.27363879]
[1734004476507,2.06,229.42,229.39,8.27363879]
[1734004476900,4.2388,229.42,229.39,8.27363879]
[1734004478203,0.16491,229.53,229.41,8.27363879]
[1734004478409,0.16491,229.53,229.52,8.27363879]
[1734004478704,2.178,229.51,229.44,4.2386]
[1734004478899,0.16491,229.53,229.47,8.27363879]
[1734004479095,0.16491,229.53,229.43,1.3142]
[1734004479299,2.1782,229.48,229.45,8.27363879]
[1734004479503,8.43854879,229.53,229.45,8.27363879]
[1734004480106,2.1782,229.49,229.45,8.27363879]
[1734004480711,8.43854879,229.53,229.45,8.27363879]
[1734004480903,2.1783,229.48,229.45,8.27363879]
[1734004481304,2.1783,229.48,229.43,1.3142]
[1734004482310,2.1783,229.48,229.43,3.4929]
[1734004483407,2.1783,229.47,229.43,2.1787]
[1734004485709,2.1783,229.47,229.44,2.1786]
[1734004485908,2.06,229.49,229.44,2.1786]
[1734004486108,2.1783,229.48,229.44,2.1786]
[1734004489727,2.06,229.51,229.42,1.4506]
[1734004490215,2.1783,229.48,229.44,2.1786]
[1734004490416,2.06,229.51,229.44,2.1786]
[1734004490821,2.1782,229.49,229.44,2.1786]
[1734004492623,2.06,229.51,229.44,2.1786]
[1734004492920,2.1782,229.48,229.44,2.1786]
[1734004493324,2.1782,229.48,229.45,2.1785]
[1734004499321,2.06,229.52,229.44,12.93063466]
[1734004499528,2.06,229.52,229.42,2.778]
[1734004499529,2.178,229.51,229.47,12.93063466]
[1734004499729,2.06,229.52,229.47,12.93063466]
[1734004500225,2.1778,229.54,229.49,2.1781]
[1734004500427,7.33563691,229.55,229.47,12.93063466]
[1734004501027,1.3449,229.6,229.47,12.93063466]
[1734004501330,2.06,229.59,229.5,12.93063466]
[1734004501830,2.1776,229.56,229.52,2.1779]
[1734004502330,2.1776,229.56,229.5,12.93063466]
[1734004502524,2.06,229.59,229.51,2.1779]
[1734004502725,2.06,229.59,229.43,1.3754]
[1734004502726,5.30664082,229.56,229.43,1.3754]
[1734004502930,5.30664082,229.56,229.44,7.48245934]
[1734004503128,8.27532248,229.53,229.46,8.27532248]
[1734004503432,2.1781,229.5,229.46,8.27532248]
[1734004503930,2.06,229.52,229.48,8.27532248]
[1734004504131,4.2379,229.52,229.48,10.45352248]
[1734004504333,4.2379,229.52,229.48,8.27532248]
[1734004505134,2.06,229.52,229.49,2.1781]
[1734004505334,13.5819633,229.56,229.5,8.27532248]
[1734004505335,2.06,229.55,229.5,8.27532248]
[1734004505538,2.06,229.55,229.52,8.27532248]
[1734004505931,9.62022248,229.6,229.52,8.27532248]
[1734004506233,2.1776,229.55,229.52,8.27532248]
[1734004507336,2.1778,229.54,229.49,2.1781]
[1734004507532,2.1778,229.54,229.44,2.06]
[1734004507533,2.1778,229.54,229.51,8.27532248]
[1734004507736,5.3380194,229.58,229.51,8.27532248]
[1734004508038,8.27532248,229.56,229.47,8.27532248]
[1734004509432,5.3380194,229.58,229.42,2.778]
[1734004509433,2.1781,229.5,229.45,10.45382248]
[1734004509838,2.06,229.52,229.45,2.1785]
[1734004510033,2.06,229.52,229.45,8.27532248]
[1734004510238,8.27532248,229.51,229.42,2.778]
[1734004510435,8.27532248,229.51,229.42,9.60272248]
[1734004510738,8.27532248,229.47,229.33,1.3647]
[1734004511036,183.33101675,229.56,229.38,8.27532248]
[1734004511037,8.27532248,229.45,229.38,8.27532248]
[1734004511235,8.27532248,229.45,229.33,2.695]
[1734004511236,2.1788,229.42,229.34,2.1795]
[1734004511433,2.06,229.43,229.35,5.30939117]
[1734004511630,2.06,229.43,229.33,15.63462198]
[1734004511829,2.06,229.43,229.35,2.1795]
[1734004512037,14.99962198,229.43,229.27,70.98752282]
[1734004512242,14.99962198,229.43,229.28,5.31024758]
[1734004512443,14.99962198,229.43,229.29,5.31024758]
[1734004512743,14.99962198,229.43,229.3,5.31024758]
[1734004512944,2.1795,229.35,229.28,2.1807397]
[1734004513139,2.06,229.35,229.28,2.1807397]
[1734004513534,2.1798,229.32,229.29,5.30692287]
[1734004513836,2.06,229.35,229.3,5.30692287]
[1734004514040,2.06,229.35,229.28,2.1807397]
[1734004514337,2.06,229.35,229.29,5.3069403]
[1734004514549,2.06,229.35,229.28,2.1807397]
[1734004514845,4.2396,229.35,229.29,5.30532097]
[1734004515033,4.2396,229.35,229.3,5.30532097]
[1734004515234,4.2396,229.35,229.28,4.3608397]
[1734004515435,4.2396,229.35,229.29,5.3038464]
[1734004515641,2.06,229.35,229.3,5.30373269]
[1734004515841,2.06,229.35,229.28,15.12036168]
[1734004516034,1.4359,229.39,229.29,5.30383088]
[1734004516241,2.06,229.38,229.3,5.30383088]
[1734004516438,2.06,229.38,229.28,15.12036168]
[1734004516642,2.1795,229.35,229.29,5.30252511]
[1734004516940,2.1795,229.35,229.28,17.30046168]
[1734004517138,2.1795,229.35,229.29,5.30129024]
[1734004517340,2.1795,229.35,229.28,17.30046168]
[1734004517544,2.1795,229.35,229.29,5.29997592]
[1734004517842,2.1795,229.35,229.28,17.30046168]
[1734004518039,2.1795,229.35,229.29,5.29865817]
[1734004518337,2.1795,229.35,229.28,17.30046168]
[1734004518536,2.1795,229.35,229.29,5.29605184]
[1734004518737,2.06,229.38,229.28,15.12036168]
[1734004518941,2.1794,229.37,229.29,5.2943758]
[1734004519142,1.4359,229.39,229.31,12.93962198]
[1734004519344,2.06,229.39,229.31,12.93962198]
[1734004520441,1.4144,229.46,229.31,12.93962198]
[1734004520647,7.30397606,229.45,229.34,12.93962198]
[1734004521138,2.1789,229.41,229.35,2.1794]
[1734004521338,2.1789,229.41,229.34,12.93962198]
[1734004522039,2.06,229.4,229.25,4.755]
[1734004522240,2.06,229.39,229.29,12.93962198]
[1734004522542,2.06,229.39,229.3,5.29431319]
[1734004522740,2.06,229.39,229.29,12.93962198]
[1734004522940,2.06,229.4,229.29,12.93962198]
[1734004523647,2.1794,229.37,229.32,2.1798]
[1734004524147,2.1794,229.36,229.32,2.1798]
[1734004524544,2.06,229.4,229.3,2.1799]
[1734004524943,2.1795,229.36,229.29,12.93962198]
[1734004525344,2.06,229.4,229.29,12.93962198]
[1734004525545,2.1795,229.35,229.31,2.1799]
[1734004528140,2.06,229.4,229.29,12.93962198]
[1734004528843,2.06,229.4,229.29,15.11962198]
[1734004529041,2.06,229.4,229.26,12.93962198]
[1734004529247,2.1798,229.32,229.27,2.1802]
[1734004529546,2.1798,229.32,229.26,12.93962198]
[1734004529848,2.1798,229.32,229.25,4.755]
[1734004529849,2.06,229.34,229.29,12.93962198]
[1734004530045,2.1791,229.39,229.32,12.93962198]
[1734004530351,2.06,229.41,229.32,12.93962198]
[1734004530647,2.06,229.41,229.32,15.11932198]
[1734004530648,2.1793,229.37,229.32,15.11932198]
[1734004531045,2.1793,229.37,229.32,12.93962198]
[1734004531246,2.1795,229.35,229.32,2.1798]
[1734004531441,2.1795,229.35,229.29,12.93962198]
[1734004532046,2.1797,229.33,229.29,12.93962198]
[1734004532349,2.06,229.36,229.25,2.695]
[1734004532547,2.06,229.36,229.26,5.2887193]
[1734004532746,2.18,229.3,229.26,2.1803]
[1734004533645,2.18,229.3,229.27,2.1802]
[1734004535049,2.06,229.36,229.25,2.695]
[1734004535248,2.1799,229.31,229.27,2.1802]
[1734004537752,2.18,229.3,229.26,2.1803]
[1734004538048,2.06,229.31,229.26,2.1803]
[1734004538253,2.06,229.31,229.23,5.35285591]
[1734004539754,4.2399,229.31,229.27,2.1802]
[1734004541155,4.2399,229.31,229.28,2.1801]
[1734004542055,5.24397606,229.45,229.28,12.93962198]
[1734004542252,3.4052,229.44,229.29,1.3904]
[1734004542647,2.1794,229.37,229.32,2.1797]
[1734004543358,2.06,229.38,229.32,2.1797]
[1734004543359,2.1794,229.36,229.32,2.1797]
[1734004543759,2.06,229.38,229.31,2.1798]
[1734004544857,2.06,229.38,229.29,1.3904]
[1734004545051,2.1796,229.34,229.3,2.1799]
[1734004545251,2.1796,229.34,229.29,1.3904]
[1734004546455,2.06,229.38,229.29,1.3904]
[1734004546660,2.1797,229.33,229.29,1.3904]
[1734004546860,2.1797,229.33,229.26,2.06]
[1734004547460,2.1797,229.33,229.28,2.1801]
[1734004548254,4.2397,229.33,229.28,2.1801]
[1734004548455,2.1798,229.32,229.28,2.1801]
[1734004548860,2.06,229.33,229.28,2.1801]
[1734004549057,2.1799,229.31,229.28,2.1801]
[1734004549366,8.28797461,229.32,229.26,2.1803]
[1734004550166,2.18,229.3,229.26,10.46827461]
[1734004550460,2.18,229.3,229.27,5.30192008]
[1734004550665,2.18,229.3,229.26,10.46827461]
[1734004551964,2.1801,229.29,229.25,10.46837461]
[1734004552364,2.1801,229.29,229.26,5.31084695]
[1734004552663,2.1801,229.29,229.25,10.46837461]
[1734004552862,2.1801,229.29,229.26,5.31021105]
[1734004553061,2.1801,229.29,229.25,10.46837461]
[1734004553262,2.1801,229.29,229.26,5.3102141]
[1734004553565,2.1801,229.29,229.25,10.46837461]
[1734004553566,2.1801,229.29,229.27,5.3102141]
[1734004553761,2.1801,229.29,229.25,10.46837461]
[1734004554070,2.1801,229.29,229.26,5.31426978]
[1734004554368,2.1801,229.29,229.25,10.46837461]
[1734004554565,2.1801,229.29,229.26,5.31923971]
[1734004554766,2.1801,229.29,229.25,10.46837461]
[1734004555067,2.1801,229.29,229.26,5.31925295]
[1734004555364,2.1801,229.29,229.27,5.31925295]
[1734004555562,2.1801,229.29,229.28,5.31925295]
[1734004556369,2.1801,229.29,229.09,19.5252684]
[1734004556370,8.28797461,229.29,229.2,8.28797461]
[1734004556560,8.28797461,229.26,229.21,5.32574111]
[1734004556763,2.06,229.25,229.22,5.32574111]
[1734004556964,2.06,229.25,229.23,5.32574111]
[1734004557169,2.06,229.25,229.19,2.1809]
[1734004557367,2.06,229.25,229.2,5.32582736]
[1734004557564,2.1806,229.24,229.21,5.32582736]
[1734004557767,2.1806,229.24,229.22,5.32582736]
[1734004557966,2.06,229.25,229.23,5.32349142]
[1734004558162,2.06,229.25,229.2,8.28797461]
[1734004558464,2.06,229.25,229.21,5.32331287]
[1734004558868,2.06,229.25,229.22,5.32331287]
[1734004559067,2.06,229.25,229.23,5.32331287]
[1734004559373,2.06,229.25,229.21,2.1808]
[1734004559669,2.06,229.25,229.22,5.31916554]
[1734004559868,2.06,229.25,229.21,2.1808]
[1734004560071,2.06,229.25,229.22,5.31926643]
[1734004560264,4.2405,229.25,229.21,2.1808]
[1734004560464,2.06,229.25,229.22,5.31922614]
[1734004560661,2.06,229.25,229.2,10.46887461]
[1734004560867,2.06,229.25,229.21,5.31957089]
[1734004561062,2.06,229.25,229.2,10.46887461]
[1734004561266,2.06,229.25,229.21,5.31754592]
[1734004561467,2.06,229.25,229.2,10.46887461]
[1734004561768,2.1806,229.24,229.21,5.31293387]
[1734004561964,2.1806,229.24,229.2,10.46887461]
[1734004562171,2.1806,229.24,229.21,5.31209272]
[1734004562371,2.1806,229.24,229.2,10.46887461]
[1734004563370,2.1806,229.24,229.2,2.1809]
[1734004563567,2.1806,229.24,229.2,10.46887461]
[1734004563768,2.1806,229.24,229.2,2.1809]
[1734004564768,2.06,229.25,229.03,15.1614684]
[1734004564967,8.28797461,229.21,229.14,8.28797461]
[1734004565268,2.1809,229.2,229.16,2.1813]
[1734004565571,2.1809,229.2,229.17,5.30139729]
[1734004565870,2.1809,229.2,229.16,2.1813]
[1734004566167,2.1811,229.19,229.14,2.1814]
[1734004566368,2.06,229.2,229.12,8.28797461]
[1734004566566,8.28797461,229.19,229.15,5.29801184]
[1734004566871,8.28797461,229.19,229.1,4.3003]
[1734004567067,8.28797461,229.19,229.12,8.28797461]
[1734004567267,2.1812,229.17,229.12,10.46957461]
[1734004567462,2.1812,229.17,229.13,5.30117866]
[1734004567668,2.1812,229.17,229.14,5.30117866]
[1734004567971,2.1812,229.17,229.12,8.28797461]
[1734004568171,2.1812,229.17,229.13,5.30141741]
[1734004568470,2.1812,229.17,229.14,5.30141741]
[1734004568675,2.1812,229.17,229.13,2.1816]
[1734004568975,2.1812,229.17,229.14,5.30155093]
[1734004569166,2.1812,229.17,229.13,2.1816]
[1734004570267,2.06,229.2,229.13,2.1816]
[1734004570468,8.28797461,229.19,229.13,2.1816]
[1734004571976,2.1813,229.16,229.13,2.1816]
[1734004572272,1.4486,229.24,229.08,8.28797461]
[1734004572273,10.34797461,229.15,229.08,8.28797461]
[1734004572573,10.34797461,229.15,229.09,5.30179083]
[1734004572766,10.34797461,229.15,229.07,2.1821]
[1734004572967,10.34797461,229.15,229.08,5.30202526]
[1734004573179,10.34797461,229.15,229.07,2.1821]
[1734004573472,10.34797461,229.15,229.08,5.29977373]
[1734004573775,8.28797461,229.11,229.05,2.1823]
[1734004574275,2.1822,229.07,228.98,3.4435]
[1734004574477,2.1822,229.07,229.03,8.28797461]
[1734004574874,2.1822,229.07,229.03,10.47037461]
[1734004576173,2.1821,229.08,229.04,2.1824]
[1734004576373,1.3705,229.14,229.05,8.28797461]
[1734004576671,10.34797461,229.13,229.07,8.28797461]
[1734004577670,2.1818,229.11,229.07,10.47007461]
[1734004578472,5.34878341,229.2,229.09,10.46987461]
[1734004578675,8.28797461,229.16,229.09,10.46987461]
[1734004579172,2.06,229.17,229.11,8.28797461]
[1734004579378,2.06,229.17,229.04,1.3285]
[1734004579379,2.06,229.17,229.13,8.28797461]
[1734004580272,2.06,229.17,229.13,10.46957461]
[1734004581183,4.2412,229.17,229.13,8.28797461]
[1734004581474,2.06,229.17,229.1,8.28797461]
[1734004582079,8.28797461,229.16,229.08,8.28797461]
[1734004583674,8.28797461,229.16,229.09,2.1819]
[1734004584073,8.28797461,229.12,229.06,2.1822]
[1734004584275,10.34797461,229.12,229.06,2.1822]
[1734004584578,8.28797461,229.1,229.04,1.3285]
[1734004584772,2.1821,229.08,229.04,3.5109]
[1734004584971,8.28797461,229.1,229.04,2.1824]
[1734004585175,2.1821,229.08,229.04,2.1824]
[1734004587681,2.1821,229.08,229.05,2.1823]
[1734004588180,2.1821,229.08,229.02,12.97697641]
[1734004588376,2.1821,229.08,229.04,2.1824]
[1734004589378,2.1821,229.08,229.05,5.28807081]
[1734004589575,2.1821,229.08,229.04,2.1824]
[1734004589883,2.06,229.12,229.05,5.28806752]
[1734004590074,15.03697641,229.12,229.0,83.69020035]
[1734004590278,2.1824,229.05,229.01,5.28786048]
[1734004590477,2.1824,229.05,229.02,5.28786048]
[1734004590681,2.1824,229.05,229.0,83.69020035]
[1734004591477,2.1824,229.05,229.01,2.1826]
[1734004591677,2.1824,229.05,229.0,83.69020035]
[1734004592580,2.1824,229.05,229.01,2.1827]
[1734004592779,2.1824,229.05,229.0,83.69020035]
[1734004593079,2.1824,229.04,229.0,83.69020035]
[1734004594682,2.1824,229.04,229.01,2.1827]
[1734004595784,2.1823,229.05,229.01,2.1827]
[1734004598884,2.06,229.06,229.0,83.69020035]
[1734004599187,2.06,229.06,229.01,5.29502146]
[1734004599483,2.06,229.06,229.0,83.69020035]
[1734004599675,2.06,229.06,229.01,5.29642417]
[1734004599878,2.06,229.06,229.03,2.1825]
[1734004600286,2.06,229.06,228.98,1.4454]
[1734004600481,2.06,229.06,229.02,2.1826]
[1734004601687,1.4088,229.11,229.02,2.1826]
[1734004601688,2.06,229.07,229.02,2.1826]
[1734004602489,2.1823,229.06,229.02,2.1826]
[1734004602885,2.1825,229.04,229.0,2.1828]
[1734004603091,2.06,229.07,229.01,5.30114499]
[1734004603295,2.06,229.07,229.0,2.1828]
[1734004603592,2.06,229.07,229.01,5.30203941]
[1734004603794,2.06,229.07,229.0,2.1828]
[1734004603995,2.1823,229.05,229.0,2.1828]
[1734004604191,2.06,229.07,229.01,5.301749]
[1734004604396,2.06,229.07,229.02,5.301749]
[1734004604587,2.06,229.07,228.98,14.42237641]
[1734004604789,2.06,229.07,228.99,5.3029135]
[1734004604987,2.06,229.07,229.0,5.3029135]
[1734004605189,2.06,229.09,229.03,8.30534048]
[1734004605692,2.1822,229.07,229.04,2.1824]
[1734004606295,2.1822,229.07,229.03,10.48784048]
[1734004614500,2.1822,229.07,229.03,2.1825]
[1734004616098,2.1822,229.07,229.04,5.31971449]
[1734004616291,2.1822,229.07,229.03,2.1825]
[1734004616495,2.1823,229.06,229.04,5.31971449]
[1734004616702,2.1823,229.06,229.03,2.1825]
[1734004616903,2.1823,229.06,229.04,5.31971449]
[1734004617104,2.1823,229.06,229.03,2.1825]
[1734004617303,2.1823,229.06,229.04,5.32105634]
[1734004617502,2.1823,229.06,229.03,2.1825]
[1734004617700,1.4088,229.11,229.04,5.32103096]
[1734004618009,185.00401675,229.17,229.07,8.30534048]
[1734004618010,2.06,229.12,229.07,8.30534048]
[1734004618201,2.06,229.12,229.08,5.31951079]
[1734004618396,2.06,229.12,229.09,5.31951079]
[1734004618599,2.06,229.12,229.07,8.30534048]
[1734004618801,2.06,229.12,229.08,5.31628409]
[1734004618997,2.06,229.12,229.09,5.31628409]
[1734004619204,2.06,229.12,229.04,8.30534048]
[1734004619205,10.36534048,229.12,229.04,8.30534048]
[1734004619401,10.36534048,229.12,229.05,5.31697085]
[1734004619601,2.1821,229.08,229.06,5.31697085]
[1734004619797,2.1821,229.08,229.07,5.31697085]
[1734004620201,2.1821,229.08,229.05,2.1823]
[1734004620508,2.1821,229.08,229.06,5.31688006]
[1734004620710,2.1821,229.08,229.05,2.1823]
[1734004621012,54.25698195,229.18,228.98,9.75074048]
[1734004621013,8.30534048,229.06,228.98,9.75074048]
[1734004621310,8.30534048,229.06,228.99,5.31848115]
[1734004621509,8.30534048,229.06,228.98,9.75074048]
[1734004621510,8.30534048,229.06,229.0,5.31848115]
[1734004621701,8.30534048,229.06,229.01,5.31848115]
[1734004622005,2.1824,229.05,229.02,5.31848115]
[1734004622206,8.30534048,229.06,229.03,5.31848115]
[1734004622409,8.30534048,229.06,229.01,2.1827]
[1734004622598,8.30534048,229.06,229.02,5.31838583]
[1734004622813,8.30534048,229.06,229.03,5.31838583]
[1734004622814,2.1825,229.04,229.03,5.31838583]
[1734004623208,2.06,229.07,229.03,2.1825]
[1734004623402,2.06,229.07,229.03,7.50085136]
[1734004623606,2.06,229.07,229.04,5.31835136]
[1734004623810,2.06,229.07,229.03,2.1825]
[1734004624007,2.06,229.07,229.04,5.31801544]
[1734004624205,2.06,229.07,229.03,2.1825]
[1734004624509,2.06,229.07,229.04,5.31824565]
[1734004624810,2.1822,229.06,229.03,2.1825]
[1734004625110,2.1822,229.06,229.04,5.31693498]
[1734004625314,2.1822,229.06,229.05,5.31693498]
[1734004626106,2.1822,229.06,229.03,2.1825]
[1734004626509,2.1822,229.06,229.04,5.31874075]
[1734004626701,2.1822,229.06,229.05,5.31874075]
[1734004629214,2.182,229.09,229.05,7.50094075]
[1734004629408,2.06,229.11,229.06,5.32379952]
[1734004629607,2.06,229.11,229.07,5.32379952]
[1734004629810,2.1818,229.11,229.08,5.32379952]
[1734004630110,2.06,229.12,229.09,5.32379952]
[1734004630310,2.06,229.12,229.1,5.32379952]
[1734004630517,2.06,229.12,229.11,5.32379952]
[1734004631607,2.1817,229.12,229.11,5.32379952]
[1734004632515,2.1817,229.12,229.11,5.31701024]
[1734004632713,2.1817,229.12,229.0,2.06]
[1734004632714,10.36534048,229.13,229.04,8.30534048]
[1734004632910,8.30534048,229.11,229.04,8.30534048]
[1734004633109,8.30534048,229.11,229.05,5.31828558]
[1734004633310,8.30534048,229.11,229.06,5.31828558]
[1734004633511,8.30534048,229.11,229.07,5.31828558]
[1734004633815,2.1822,229.07,229.04,2.1824]
[1734004634012,2.1822,229.07,229.05,5.3210898]
[1734004634316,2.1822,229.07,229.06,5.3210898]
[1734004635119,4.2422,229.07,229.06,5.3210898]
[1734004635817,4.2422,229.07,229.02,2.1826]
[1734004635818,2.1823,229.06,229.02,2.1826]
[1734004636017,2.1823,229.06,229.03,5.32683502]
[1734004636218,2.1823,229.06,229.04,5.32683502]
[1734004636519,2.1823,229.06,229.05,5.32683502]
[1734004638417,2.06,229.07,229.05,5.32683502]
[1734004638623,2.06,229.07,229.06,5.32683502]
[1734004639621,8.30534048,229.11,229.06,5.32683502]
[1734004639921,2.06,229.1,229.07,5.32683502]
[1734004640220,2.1821,229.08,229.04,8.30534048]
[1734004640422,2.1821,229.08,229.05,5.32855491]
[1734004640724,2.06,229.1,229.06,5.32855491]
[1734004640926,2.1821,229.07,229.04,8.30534048]
[1734004641116,2.1821,229.07,229.05,5.32884247]
[1734004641321,2.1821,229.07,229.06,5.32884247]
[1734004642037,2.1821,229.07,229.06,5.32962796]
[1734004642521,2.1821,229.07,229.06,5.33052252]
[1734004643325,2.1821,229.08,229.06,5.33052252]
[1734004643526,2.1821,229.08,229.07,5.33052252]
[1734004643822,2.1817,229.12,229.08,2.182]
[1734004644023,2.1817,229.12,229.09,5.33052252]
[1734004644226,2.06,229.13,229.1,5.33052252]
[1734004644526,2.06,229.13,229.08,8.30534048]
[1734004644825,2.06,229.13,229.09,5.32757248]
[1734004644826,2.1818,229.11,229.09,5.32757248]
[1734004645018,2.1818,229.11,229.1,5.32757248]
[1734004646126,2.1817,229.12,229.1,5.32757248]
[1734004646325,2.1817,229.12,229.11,5.32757248]
[1734004647518,2.06,229.14,229.11,5.32757248]
[1734004647823,2.06,229.14,229.02,2.06]
[1734004647824,8.30534048,229.13,229.05,8.30534048]
[1734004648019,8.30534048,229.13,229.06,7.51066257]
[1734004648227,2.1818,229.11,229.07,5.32846257]
[1734004648430,2.1818,229.11,229.08,5.32846257]
[1734004648634,2.1818,229.11,229.09,5.32846257]
[1734004648928,2.1818,229.11,229.1,5.32846257]
[1734004650719,2.1816,229.13,229.1,5.32846257]
[1734004650920,2.1816,229.13,229.11,5.32846257]
[1734004651119,2.1816,229.13,229.12,5.32846257]
[1734004651319,2.1816,229.13,229.08,2.182]
[1734004651723,2.1816,229.13,229.09,5.32710034]
[1734004651922,2.1816,229.13,229.1,5.32710034]
[1734004652129,2.1816,229.13,229.11,5.32710034]
[1734004652429,2.1816,229.13,229.09,8.30534048]
[1734004652634,2.1816,229.13,229.1,5.32670338]
[1734004652927,2.1816,229.13,229.11,5.32670338]
[1734004653232,2.1816,229.13,229.12,5.32670338]
[1734004654328,2.06,229.15,229.09,8.30534048]
[1734004654522,2.1817,229.12,229.1,5.32159271]
[1734004654729,2.1817,229.12,229.11,5.32159271]
[1734004657833,2.1817,229.12,229.09,8.30534048]
[1734004658034,2.1817,229.12,229.1,5.32503364]
[1734004658231,2.1817,229.12,229.11,5.32503364]
[1734004661033,10.36534048,229.15,229.09,8.30534048]
[1734004661233,10.36534048,229.15,229.1,5.32625498]
[1734004661535,10.36534048,229.15,229.09,8.30534048]
[1734004661734,10.36534048,229.15,229.1,5.32718098]
[1734004661935,10.36534048,229.15,229.09,8.30534048]
[1734004662136,2.1817,229.12,229.1,5.32729286]
[1734004662338,2.1817,229.12,229.08,2.182]
[1734004662638,2.1817,229.12,229.09,5.32765384]
[1734004662835,2.1817,229.12,229.1,5.32765384]
[1734004663035,2.1817,229.12,229.11,5.32756344]
[1734004666541,2.1816,229.13,229.11,5.32756344]
[1734004666738,1.3481,229.18,229.12,5.32810508]
[1734004666940,2.06,229.17,229.13,5.32810508]
[1734004667139,2.06,229.17,229.14,5.32810508]
[1734004667140,2.1815,229.15,229.14,5.32810508]
[1734004667340,2.1815,229.15,229.11,8.30534048]
[1734004667744,2.1815,229.15,229.12,5.32770993]
[1734004667944,2.1815,229.14,229.13,5.32770993]
[1734004669544,9.65344048,229.18,229.13,5.32770993]
[1734004669751,2.06,229.25,229.16,8.30534048]
[1734004670042,2.06,229.23,229.17,5.32770993]
[1734004670242,8.30534048,229.22,229.18,5.32770993]
[1734004670449,8.30534048,229.22,229.15,2.1814]
[1734004670654,8.30534048,229.22,229.16,5.32500421]
[1734004670847,2.1809,229.21,229.16,8.30534048]
[1734004671049,2.06,229.22,229.15,2.1813]
[1734004671244,2.06,229.22,229.17,8.30534048]
[1734004671446,2.06,229.22,229.08,4.3278]
[1734004671447,8.30534048,229.21,229.08,4.3278]
[1734004671646,8.30534048,229.21,229.14,8.30534048]
[1734004671853,2.1811,229.19,229.15,5.3230096]
[1734004672050,2.1811,229.19,229.16,5.3230096]
[1734004672250,2.1811,229.19,229.14,10.48674048]
[1734004672455,2.1811,229.19,229.15,5.32222263]
[1734004672756,2.06,229.22,229.16,5.32222263]
[1734004672947,2.06,229.22,229.15,2.1814]
[1734004673155,2.06,229.22,229.16,5.3223257]
[1734004673357,2.06,229.22,229.15,2.1814]
[1734004673658,2.06,229.22,229.16,5.32164818]
[1734004673858,2.06,229.22,229.15,2.1814]
[1734004674057,2.06,229.22,229.16,5.32152]
[1734004674256,2.06,229.22,229.15,2.1814]
[1734004674455,2.06,229.22,229.16,5.31985284]
[1734004674655,2.181,229.19,229.15,2.1814]
[1734004674859,2.06,229.22,229.16,15.80635988]
[1734004675154,2.06,229.22,229.18,8.30534048]
[1734004675351,2.06,229.24,229.18,8.30534048]
[1734004675659,2.06,229.24,229.19,2.181]
[1734004676657,2.06,229.26,229.19,2.181]
[1734004677358,2.1807,229.23,229.2,8.30534048]
[1734004678159,2.1807,229.22,229.2,8.30534048]
[1734004678361,2.1807,229.22,229.21,8.30534048]
[1734004679856,1.3573,229.28,229.21,8.30534048]
[1734004680058,2.1804,229.26,229.24,8.30534048]
[1734004680256,2.06,229.28,229.24,8.30534048]
[1734004680557,2.1801,229.29,229.26,8.30534048]
[1734004680757,2.06,229.3,229.26,8.30534048]
[1734004681061,2.06,229.3,229.24,8.30534048]
[1734004681862,2.1803,229.27,229.22,2.1807]
[1734004682059,2.06,229.3,229.22,8.30534048]
[1734004682559,2.1802,229.28,229.22,8.30534048]
[1734004682763,2.06,229.3,229.22,8.30534048]
[1734004683354,2.06,229.3,229.21,2.1808]
[1734004683355,2.1804,229.26,229.21,2.1808]
[1734004683557,8.30534048,229.29,229.21,10.48614048]
[1734004683960,2.1803,229.27,229.21,10.48614048]